[Event "XVI Memorial Ezequiel Martin 2024"]
[Site "Mollet"]
[Date "2024.06.09"]
[Round "4.5"]
[White "Garriga Cazorla, Pere"]
[Black "Silva Cerda, Mark Valentin"]
[Result "1-0"]
[ECO "D36"]
[WhiteElo "2471"]
[BlackElo "1998"]
[Annotator "TA"]
[PlyCount "69"]
[EventDate "2024.06.01"]
[EventType "swiss"]
[EventCountry "ESP"]
[SourceTitle "playchess.com"]
[Source "ChessBase"]
[SourceQuality "1"]
[TimeControl "900+5"]

{[%evp 17,69,20,25,25,49,43,43,33,60,59,135,136,164,62,91,79,97,48,166,23,52,43,253,241,371,365,372,364,368,297,321,309,685,706,700,702,744,721,859,844,807,787,881,874,887,883,930,930,962,901,985,1010,5182,3393]} 1. d4 {[%emt 0:15:10]} d5 {[%emt 0:00:02]} 2. c4 {[%emt 0:00:00]} e6 {[%emt 0:00:02]} 3. Nc3 {[%emt 0:00:10]} Nf6 {[%emt 0:00:24]} 4. cxd5 {[%emt 0:00:00]} exd5 {[%emt 0:00:02]} 5. Bg5 {[%emt 0:00:00]} c6 {[%emt 0:00:01]} 6. e3 {[%emt 0:00:00]} h6 {[%emt 0:15:04]} 7. Bh4 Be7 {[%emt 0:00:00]} 8. Bd3 {[%emt 0:00:25]} O-O {[%emt 0:00:00]} 9. Qc2 {[%emt 0:00:00]} a5 {[%emt 0:00:00]} 10. Nf3 {[%emt 0:00:10]} Na6 {[%emt 0:00:00]} 11. a3 {[%emt 0:00:00] Repels Nb4} Re8 {[%emt 0:00:00]} 12. O-O {[%emt 0:00:10] White is slightly better.} Nc7 {[%emt 0:00:00]} 13. Ne5 {[%emt 0:00:05]} c5 {[%emt 0:00:00]} (13... Rf8 $14) 14. dxc5 $1 $16 {[%emt 0:00:00] White is much more active.} Bxc5 {[%emt 0:00:00] [#]} 15. Nb5 {[%emt 0:00:10]} (15. Bh7+ $1 $18 Kf8 16. Nf3) 15... Na6 {[%emt 0:00:00]} 16. Nf3 {[%emt 0:00:05]} Bd7 {[%emt 0:00:00]} 17. Nbd4 {[%emt 0:00:00]} (17. Rfd1 $16) 17... Qb6 {[%emt 0:00:55] [#]} ({Better is} 17... Rc8 $14 18. Qe2 Nb8) 18. Rfc1 {[%emt 0:00:00]} ({White should play} 18. Bxf6 $1 $18 Qxf6 19. Bxa6 Bxd4 20. Bxb7) 18... Rac8 {[%emt 0:00:00] ...Bxd4 is the strong threat.} 19. Qb3 {[%emt 0:00:15]} (19. Bxf6 {simplifies} Qxf6 20. Qb3 Bxd4 21. Rxc8 Rxc8 22. exd4 Bc6 23. g3) 19... Ne4 {[%emt 0:00:10] This move loses the game for Black.} (19... g5 $14 20. Bg3 Bxd4 21. Nxd4 Qxb3 22. Nxb3 a4) 20. Qxd5 $18 {[%emt 0:00:00]} Bc6 {[%emt 0:00:00]} (20... Nd6 {was worth a try.} 21. Bg3 Red8 22. Bxa6 bxa6 23. Rxc5 Rxc5 24. Qxd6 Qxb2) 21. Nxc6 {[%emt 0:00:00]} bxc6 {[%emt 0:00:10]} 22. Qc4 {[%emt 0:00:00]} Bxe3 {[%emt 0:00:05]} 23. Qxa6 {[%emt 0:00:20]} Bxf2+ {[%emt 0:00:00]} 24. Kh1 {[%emt 0:00:00]} Qxb2 $2 {[%emt 0:00:00]} (24... Qxa6 25. Bxa6 Rb8) 25. Bxe4 {[%emt 0:00:10] Rcb1 would now be deadly. White is clearly winning.} ({Stronger than} 25. Qxa5 Bxh4 26. Bxe4 Rxe4 $15) 25... Bxh4 {[%emt 0:00:09]} 26. Nxh4 {[%emt 0:00:00]} Qd4 {[%emt 0:00:02]} 27. Bxc6 {[%emt 0:00:00]} Red8 {[%emt 0:00:03]} 28. Nf3 {[%emt 0:00:00]} Qf6 {[%emt 0:00:06]} 29. Bb7 {[%emt 0:00:00][%cal Bc6b7,Bb7e4,Be4d3,Bd3b5,Bb5e8][%mdl 32]} Rb8 {[%emt 0:00:09]} 30. Qxf6 {[%emt 0:00:00]} gxf6 {[%emt 0:00:02]} 31. Be4 {[%emt 0:00:00]} Rb2 {[%emt 0:00:06]} 32. a4 {[%emt 0:00:00]} Re8 {[%emt 0:00:03]} 33. Bd3 {[%emt 0:00:00]} Rb3 {[%emt 0:00:07]} 34. Bb5 {[%emt 0:00:00]} Rb2 {[%emt 0:00:02]} 35. Bxe8 {[%emt 0:00:00] Weighted Error Value: White=0.38/Black=0.72.  Loses game:     	---       	Black=1      Mistake:       	White=3     	Black=4      Inaccurate:     	---       	Black=3      OK:         	White=6     	Black=2      Best:        	White=2     	Black=1} 1-0

[Event "XVI Memorial Ezequiel Martin 2024"]
[Site "Mollet"]
[Date "2024.06.09"]
[Round "4.6"]
[White "Rahal, Michael A"]
[Black "Narciso Dublan, Marc"]
[Result "1/2-1/2"]
[ECO "B07"]
[WhiteElo "2302"]
[BlackElo "2432"]
[Annotator "RC"]
[PlyCount "60"]
[EventDate "2024.06.01"]
[EventType "swiss"]
[EventCountry "ESP"]
[SourceTitle "playchess.com"]
[Source "ChessBase"]
[SourceQuality "1"]
[TimeControl "900+5"]

1. e4 {[%emt 0:00:03]} d6 {[%emt 0:00:18]} 2. d4 {[%emt 0:00:05]} Nf6 {[%emt 0:00:05]} 3. Nc3 {[%emt 0:00:05]} e5 {[%emt 0:00:05]} 4. dxe5 {[%emt 0:00:05]} dxe5 {[%emt 0:00:05]} 5. Qxd8+ {[%emt 0:00:05]} Kxd8 {[%emt 0:00:05]} 6. Bc4 {[%emt 0:00:05]} Bb4 {[%emt 0:00:05]} 7. f3 {[%emt 0:00:05]} Bxc3+ {[%emt 0:00:05]} 8. bxc3 {[%emt 0:00:05]} Be6 {[%emt 0:00:05]} 9. Bxe6 {[%emt 0:00:05]} fxe6 {[%emt 0:00:05]} 10. c4 {[%emt 0:00:05]} Nbd7 {[%emt 0:00:39]} 11. Bb2 {[%emt 0:02:01]} a5 {[%emt 0:00:17]} 12. Nh3 {[%emt 0:00:29]} Ra6 {[%emt 0:03:20]} 13. O-O-O {[%emt 0:00:44]} Ke7 {[%emt 0:00:46]} 14. Nf2 {[%emt 0:00:25]} Ne8 {[%emt 0:00:12]} 15. Ng4 {[%emt 0:01:36]} Nd6 {[%emt 0:00:05]} 16. Bxe5 {[%emt 0:01:38]} h5 {[%emt 0:01:16]} 17. Bxd6+ {[%emt 0:01:29]} cxd6 {[%emt 0:00:01]} 18. Ne3 {[%emt 0:00:01]} Rc8 {[%emt 0:00:06]} 19. Rd4 {[%emt 0:01:04]} Rac6 {[%emt 0:00:26]} 20. Rhd1 {[%emt 0:00:23]} Ne5 {[%emt 0:00:18]} 21. Kd2 {[%emt 0:01:04]} g5 {[%emt 0:01:39]} 22. Rb1 {[%emt 0:00:10]} b6 {[%emt 0:00:02]} 23. Rb5 {[%emt 0:00:40]} Rf8 {[%emt 0:06:55]} 24. Ke2 {[%emt 0:01:31]} g4 {[%emt 0:00:00]} 25. fxg4 {[%emt 0:00:48]} hxg4 {[%emt 0:00:00]} 26. Rb1 {[%emt 0:00:18]} Rh8 {[%emt 0:00:00]} 27. Rh1 {[%emt 0:00:14]} Rhc8 {[%emt 0:00:00]} 28. Rhd1 {[%emt 0:00:03]} Rh8 {[%emt 0:00:00]} 29. Rh1 {[%emt 0:00:01]} Rhc8 {[%emt 0:00:00]} 30. Rhd1 {[%emt 0:00:05]} Rh8 {[%emt 0:00:00]} 1/2-1/2

[Event "XVI Memorial Ezequiel Martin 2024"]
[Site "Mollet"]
[Date "2024.06.09"]
[Round "5.1"]
[White "Hernandez, Cristian Andres"]
[Black "Lazaro Pujol, Abel"]
[Result "0-1"]
[ECO "C47"]
[WhiteElo "2350"]
[BlackElo "2356"]
[Annotator "RC"]
[PlyCount "38"]
[EventDate "2024.06.01"]
[EventType "swiss"]
[EventCountry "ESP"]
[SourceTitle "playchess.com"]
[Source "ChessBase"]
[SourceQuality "1"]
[TimeControl "900+5"]

1. e4 {[%emt 0:15:10]} e5 {[%emt 0:00:03]} 2. Nf3 {[%emt 0:00:00]} Nc6 {[%emt 0:00:02]} 3. Nc3 {[%emt 0:00:00]} Nf6 {[%emt 0:00:02]} 4. a3 {[%emt 0:00:00]} d5 {[%emt 0:00:30]} 5. Bb5 {[%emt 0:00:20]} d4 {[%emt 0:01:07]} 6. Ne2 {[%emt 0:00:00]} Bd6 {[%emt 0:13:51]} 7. c3 {[%emt 0:00:10]} dxc3 {[%emt 0:00:00]} 8. d4 {[%emt 0:00:05]} Nxe4 {[%emt 0:00:00]} 9. Qa4 {[%emt 0:00:05]} O-O {[%emt 0:00:15]} 10. dxe5 {[%emt 0:00:00]} Nc5 {[%emt 0:00:05]} 11. Qc2 {[%emt 0:00:00]} Nxe5 {[%emt 0:00:05]} 12. Ng5 {[%emt 0:00:15]} g6 {[%emt 0:00:00]} 13. Nxc3 {[%emt 0:00:05]} Bf5 {[%emt 0:00:00]} 14. Nge4 {[%emt 0:00:05]} Qh4 {[%emt 0:00:15]} 15. g4 {[%emt 0:00:05]} Bxg4 {[%emt 0:00:05]} 16. Ng5 {[%emt 0:00:05]} a6 {[%emt 0:00:05]} 17. Be2 {[%emt 0:00:00]} Bxe2 {[%emt 0:00:00]} 18. Qxe2 {[%emt 0:00:10]} Ned3+ {[%emt 0:00:10]} 19. Kf1 {[%emt 0:00:00]} Nxc1 {[%emt 0:00:00]} 0-1

[Event "XVI Memorial Ezequiel Martin 2024"]
[Site "Mollet"]
[Date "2024.06.09"]
[Round "5.2"]
[White "Cruz, Filemon"]
[Black "Aloma Vidal, Robert"]
[Result "1/2-1/2"]
[ECO "A10"]
[WhiteElo "2247"]
[BlackElo "2428"]
[Annotator "RC"]
[PlyCount "70"]
[EventDate "2024.06.01"]
[EventType "swiss"]
[EventCountry "ESP"]
[SourceTitle "playchess.com"]
[Source "ChessBase"]
[SourceQuality "1"]
[TimeControl "900+5"]

1. c4 {[%emt 0:00:03]} b6 {[%emt 0:00:01]} 2. Nf3 {[%emt 0:00:04]} Bb7 {[%emt 0:00:04]} 3. e3 {[%emt 0:00:02]} g6 {[%emt 0:00:10]} 4. Be2 {[%emt 0:00:09]} Bg7 {[%emt 0:00:01]} 5. O-O {[%emt 0:00:03]} c5 {[%emt 0:00:07]} 6. Nc3 {[%emt 0:00:03]} Nf6 {[%emt 0:00:03]} 7. Qc2 {[%emt 0:00:15]} O-O {[%emt 0:01:07]} 8. b3 {[%emt 0:00:18]} d5 {[%emt 0:00:02]} 9. cxd5 {[%emt 0:00:02]} Nxd5 {[%emt 0:00:03]} 10. Bb2 {[%emt 0:00:04]} Nc6 {[%emt 0:01:17]} 11. Nxd5 {[%emt 0:00:55]} Qxd5 {[%emt 0:00:04]} 12. Bxg7 {[%emt 0:00:03]} Kxg7 {[%emt 0:00:02]} 13. d3 {[%emt 0:00:11]} Qd6 {[%emt 0:02:42]} 14. Rfd1 {[%emt 0:00:10]} Rac8 {[%emt 0:00:28]} 15. a3 {[%emt 0:00:05]} Qf6 {[%emt 0:00:07]} 16. Rac1 {[%emt 0:00:14]} a5 {[%emt 0:00:12]} 17. Qc4 {[%emt 0:01:18]} Rfd8 {[%emt 0:00:14]} 18. Bf1 {[%emt 0:01:56]} Rd6 {[%emt 0:00:22]} 19. h3 {[%emt 0:00:31]} Rcd8 {[%emt 0:00:06]} 20. Rd2 {[%emt 0:00:47]} e5 {[%emt 0:00:48]} 21. Rcd1 {[%emt 0:00:28]} Ne7 {[%emt 0:00:59]} 22. Be2 {[%emt 0:00:32]} Nd5 {[%emt 0:03:05]} 23. Qc2 {[%emt 0:00:30]} Nc7 {[%emt 0:00:46]} 24. Qb2 {[%emt 0:00:27]} Re8 {[%emt 0:00:59]} 25. b4 {[%emt 0:00:12]} cxb4 {[%emt 0:00:31]} 26. axb4 {[%emt 0:00:02]} Bxf3 {[%emt 0:00:30]} 27. Bxf3 {[%emt 0:00:02]} Ne6 {[%emt 0:00:32]} 28. Bg4 {[%emt 0:00:06]} a4 {[%emt 0:00:18]} 29. Bxe6 {[%emt 0:00:31]} Rexe6 {[%emt 0:00:02]} 30. b5 {[%emt 0:00:01]} Qh4 {[%emt 0:00:32]} 31. Rc1 {[%emt 0:00:16]} Rd5 {[%emt 0:00:18]} 32. Rc4 {[%emt 0:00:02]} Qd8 {[%emt 0:00:07]} 33. d4 {[%emt 0:00:13]} a3 {[%emt 0:00:36]} 34. Qxa3 {[%emt 0:01:22]} Rxb5 {[%emt 0:00:40]} 35. Qc3 {[%emt 0:06:03]} Rd6 {[%emt 0:00:05]} 1/2-1/2

[Event "XVI Memorial Ezequiel Martin 2024"]
[Site "Mollet"]
[Date "2024.06.09"]
[Round "5.3"]
[White "Valenzuela Gomez, Fernando"]
[Black "Garriga Cazorla, Pere"]
[Result "0-1"]
[ECO "B51"]
[WhiteElo "2358"]
[BlackElo "2471"]
[Annotator "TA"]
[PlyCount "64"]
[EventDate "2024.06.01"]
[EventType "swiss"]
[EventCountry "ESP"]
[SourceTitle "playchess.com"]
[Source "ChessBase"]
[SourceQuality "1"]
[TimeControl "900+5"]

{[%evp 9,64,0,0,4,17,1,11,-9,20,38,54,45,41,54,72,86,77,68,69,68,69,68,54,43,78,49,55,51,116,38,45,33,63,23,38,23,25,7,9,0,0,0,0,-100,-97,-106,-98,-162,-1,0,0,0,0,0,0,-177,-152]} 1. e4 {[%emt 0:00:02]} c5 {[%emt 0:00:00]} 2. Nf3 {[%emt 0:00:05]} d6 {[%emt 0:00:00]} 3. Bb5+ {[%emt 0:00:00]} Nd7 {[%emt 0:00:01]} 4. O-O {[%emt 0:00:04]} a6 {[%emt 0:00:05]} 5. Be2 {[%emt 0:00:05]} Ngf6 {[%emt 0:00:00]} 6. d3 {[%emt 0:15:19][%cal Bd2d3,Bd3e4,Be4e5][%mdl 32]} e6 {[%emt 0:00:25]} 7. a4 {[%emt 0:00:00]} b6 {[%emt 0:00:02]} 8. Nfd2 {[%emt 0:00:10] The position is equal.} d5 {[%emt 0:15:12]} 9. f4 {[%emt 0:00:00]} dxe4 {[%emt 0:00:00]} 10. dxe4 {[%emt 0:00:00]} Bb7 {[%emt 0:00:00]} 11. Nc3 {[%emt 0:00:00]} Qc7 {[%emt 0:00:00][%cal Oc5c4]} 12. e5 {[%emt 0:00:20]} Nd5 {[%emt 0:00:00]} 13. Nxd5 {[%emt 0:00:00]} Bxd5 {[%emt 0:00:25]} 14. Bf3 {[%emt 0:00:00]} Qc6 {[%emt 0:00:05]} 15. Bxd5 {[%emt 0:00:00]} Qxd5 {[%emt 0:00:05]} 16. Qe2 {[%emt 0:00:00] Wards off c4} Be7 {[%emt 0:00:00]} 17. Ra3 {[%emt 0:00:25]} Qc6 {[%emt 0:00:10]} 18. c4 {[%emt 0:00:00]} Nf8 (18... f5 $14) 19. Qe4 {[%emt 0:00:10]} (19. Ne4 $16) 19... Qxe4 $14 {[%emt 0:00:00]} 20. Nxe4 {[%emt 0:00:00]} O-O-O {[%emt 0:00:15]} 21. Be3 {[%emt 0:00:10] Prevents Rd4.} a5 $1 {[%emt 0:00:00]} 22. Rb3 {[%emt 0:00:05]} Nd7 {[%emt 0:00:10]} 23. Bf2 {[%emt 0:00:00]} Kc7 {[%emt 0:00:05]} 24. f5 {[%emt 0:00:10]} exf5 {[%emt 0:00:00]} (24... Nxe5 25. Bg3 f6 26. Ng5 $14 (26. fxe6 Kc6 $18)) 25. Nc3 {[%emt 0:00:05] Hoping for Nd5+.} Kc6 {[%emt 0:00:00][%cal Oe7g5]} ({Don't play} 25... Nxe5 26. Bg3 f6 (26... f4 $2 27. Bxf4 Bf6 28. Nd5+ Rxd5 29. cxd5 $18) 27. Bxe5+ fxe5 28. Rxf5 $14) 26. Nd5 {[%emt 0:00:05] [#]} (26. Bg3 $1 $11) 26... Rde8 $1 $17 {[%emt 0:00:15]} 27. Bg3 {[%emt 0:00:00]} g6 {[%emt 0:00:05][%cal Bg7g6,Bg6g5][%mdl 32]} 28. Rd3 {[%emt 0:00:10] [#]} (28. Rd1 $17) 28... Bd8 $2 {[%emt 0:00:05]} ({Better is} 28... Bg5 $1 $19 29. Re1 Kb7 (29... f4 30. Nxf4 Nxe5 31. Rxe5 $11)) 29. Re1 $11 {[%emt 0:00:05]} g5 {[%emt 0:00:05] Threatens to win with ...f4.} 30. Nc3 $1 {[%emt 0:00:05]} Bc7 {[%emt 0:00:00][%cal Of5f4] Wards off Rd6+. Strongly threatening ...f4!} 31. Nb5 {[%emt 0:00:05]} Bb8 {[%emt 0:00:00][%cal Of5f4] Prevents Na7+. White must now prevent ...f4!} 32. Red1 $2 {[%emt 0:00:05]} (32. e6 $11 {and White has nothing to worry.} Rxe6 (32... fxe6 33. Bxb8 Nxb8 34. Nd6 $16) 33. Rxe6+ fxe6 34. Bxb8 Nxb8 35. Rd6+ Kb7 36. Rxe6) 32... Nxe5 {[%emt 0:00:00] Weighted Error Value: White=0.27 (precise) /Black=0.15 (very precise) .  Loses game:     	White=1     	---        Missed win:     	---       	Black=1      Mistake:       	White=3     	Black=1      Inaccurate:     	White=2     	Black=2      OK:         	White=9     	Black=12     Best:        	White=3     	Black=1      Strong:       	White=1     	Black=2} 0-1

[Event "XVI Memorial Ezequiel Martin 2024"]
[Site "Mollet"]
[Date "2024.06.09"]
[Round "5.4"]
[White "Diaz Camallonga, Carles"]
[Black "Valle Luis, Leo"]
[Result "1-0"]
[ECO "A36"]
[WhiteElo "2478"]
[BlackElo "2241"]
[Annotator "TA"]
[PlyCount "68"]
[EventDate "2024.06.01"]
[EventType "swiss"]
[EventCountry "ESP"]
[SourceTitle "playchess.com"]
[Source "ChessBase"]
[SourceQuality "1"]
[TimeControl "900+5"]

{[%evp 16,68,16,11,15,2,0,-20,-21,-32,-34,-47,-39,-48,-14,-22,-19,-38,-16,-22,-24,-30,-23,-27,-5,-6,0,-39,-20,-22,-34,-28,-33,-37,-31,-31,-32,-34,0,0,0,0,13,16,16,18,68,70,60,59,60,59,67,66,82]} 1. Nf3 {[%emt 0:00:02]} c5 {[%emt 0:00:00]} 2. g3 {[%emt 0:00:05]} g6 {[%emt 0:00:05]} 3. Bg2 {[%emt 0:00:05]} Bg7 {[%emt 0:00:05]} 4. O-O {[%emt 0:00:05]} Nc6 {[%emt 0:00:05]} 5. c4 {[%emt 0:00:05]} d6 {[%emt 0:00:05]} 6. Nc3 {[%emt 0:00:05]} e6 {[%emt 0:00:00]} 7. a3 {[%emt 0:00:07]} Nge7 {[%emt 0:00:00]} 8. b4 {[%emt 0:00:08]} O-O {[%emt 0:00:54]} 9. Rb1 {[%emt 0:00:11]} b6 {[%emt 0:00:08]} 10. Qc2 {[%emt 0:00:54]} Bb7 {[%emt 0:00:04]} 11. bxc5 {[%emt 0:01:09]} dxc5 {[%emt 0:00:02] The position is equal.} 12. Bb2 {[%emt 0:00:33]} Qd7 {[%emt 0:00:41]} 13. e3 {[%emt 0:01:20]} Rad8 {[%emt 0:00:25]} 14. Rfd1 {[%emt 0:00:20]} Na5 {[%emt 0:01:38]} 15. d3 {[%emt 0:00:10]} Rfe8 {[%emt 0:00:17]} 16. Ne1 {[%emt 0:00:19]} Nf5 {[%emt 0:01:16]} 17. Ne4 {[%emt 0:00:43]} Qe7 {[%emt 0:00:31]} 18. Bxg7 {[%emt 0:01:03]} Nxg7 {[%emt 0:00:03]} 19. Qb2 {[%emt 0:00:18] [#] Nf6+ is the strong threat.} e5 {[%emt 0:00:10]} 20. Nc3 {[%emt 0:00:27]} f5 {[%emt 0:03:13]} 21. Bxb7 {[%emt 0:01:03]} Qxb7 {[%emt 0:00:04]} 22. Nd5 {[%emt 0:00:06]} Nh5 {[%emt 0:00:05] Inhibits Nf6+.} 23. Qe2 {[%emt 0:00:05]} Qf7 {[%emt 0:00:05]} 24. Nf3 {[%emt 0:00:05]} Nc6 {[%emt 0:00:05]} 25. a4 {[%emt 0:00:05]} Nf6 {[%emt 0:02:03]} 26. e4 {[%emt 0:04:18]} Nd4 {[%emt 0:01:08]} 27. Nxd4 {[%emt 0:00:01]} exd4 {[%emt 0:00:02]} 28. Qf3 {[%emt 0:00:17]} Rd6 {[%emt 0:02:02][%cal Rf5e4]} 29. Qf4 {[%emt 0:00:21]} (29. exf5 Nxd5 30. cxd5 Rxd5 $17 (30... gxf5 31. Re1 $16) (30... Qxd5 31. Qxd5+ Rxd5 32. fxg6 $11)) 29... Red8 {[%emt 0:00:05]} 30. f3 {[%emt 0:01:28][%cal Bf2f3,Bf3e4,Be4d5][%mdl 32]} fxe4 {[%emt 0:00:53]} (30... Qd7 $11) 31. fxe4 $14 {[%emt 0:00:03] [#] Black must now prevent Rf1. White is slightly better.} Nxd5 {[%emt 0:00:05]} 32. Qxf7+ {[%emt 0:00:05]} ({Reject} 32. cxd5 Rf6 33. Qh4 Rf8 $11) 32... Kxf7 {[%emt 0:01:26]} 33. exd5 {[%emt 0:00:00]} ({Don't play} 33. cxd5 Kf6 $11) 33... Re8 {[%emt 0:00:00]} 34. Re1 {[%emt 0:00:05]} Rdd8 {[%emt 0:00:00] Weighted Error Value: White=0.06 (flawless) /Black=0.10 (very precise) .  Mistake:       	---       	Black=1      Inaccurate:     	White=1     	Black=2      OK:         	White=8     	Black=9} 1-0

[Event "XVI Memorial Ezequiel Martin 2024"]
[Site "Mollet"]
[Date "2024.06.09"]
[Round "5.5"]
[White "Narciso Dublan, Marc"]
[Black "Villa Tornero, Alex"]
[Result "1-0"]
[ECO "B24"]
[WhiteElo "2432"]
[BlackElo "2321"]
[Annotator "RC"]
[PlyCount "107"]
[EventDate "2024.06.01"]
[EventType "swiss"]
[EventCountry "ESP"]
[SourceTitle "playchess.com"]
[Source "ChessBase"]
[SourceQuality "1"]
[TimeControl "900+5"]

1. e4 {[%emt 0:00:02]} c5 {[%emt 0:00:02]} 2. Nc3 {[%emt 0:00:02]} e6 {[%emt 0:00:04]} 3. g3 {[%emt 0:00:02]} Nc6 {[%emt 0:00:03]} 4. Bg2 {[%emt 0:00:01]} Nf6 {[%emt 0:00:09]} 5. Nge2 {[%emt 0:00:02]} Be7 {[%emt 0:00:09]} 6. d4 {[%emt 0:00:16]} cxd4 {[%emt 0:00:08]} 7. Nxd4 {[%emt 0:00:01]} Nxd4 {[%emt 0:00:37]} 8. Qxd4 {[%emt 0:00:02]} d6 {[%emt 0:00:02]} 9. e5 {[%emt 0:00:33]} dxe5 {[%emt 0:00:12]} 10. Qxe5 {[%emt 0:00:01]} O-O {[%emt 0:01:04]} 11. O-O {[%emt 0:00:03]} Qd6 {[%emt 0:00:23]} 12. Qxd6 {[%emt 0:00:18]} Bxd6 {[%emt 0:00:02]} 13. Rd1 {[%emt 0:00:02]} Be5 {[%emt 0:00:08]} 14. Be3 {[%emt 0:00:52]} Bd7 {[%emt 0:00:56]} 15. Rab1 {[%emt 0:05:46]} Bxc3 {[%emt 0:04:14]} 16. bxc3 {[%emt 0:08:22]} Bc6 17. Bxc6 {[%emt 0:00:00]} bxc6 {[%emt 0:00:01]} 18. c4 {[%emt 0:00:00]} h6 {[%emt 0:02:58]} 19. Rd6 {[%emt 0:00:00]} Ne4 {[%emt 0:01:01]} 20. Rxc6 {[%emt 0:00:20]} Rfc8 21. Rxc8+ {[%emt 0:00:00]} Rxc8 {[%emt 0:00:01]} 22. Rb4 {[%emt 0:00:00]} Nc3 {[%emt 0:01:04]} 23. Bxa7 {[%emt 0:00:00]} Nxa2 {[%emt 0:00:02]} 24. Rb8 {[%emt 0:00:00]} Rxb8 {[%emt 0:00:05]} 25. Bxb8 {[%emt 0:00:00]} Nb4 {[%emt 0:00:22]} 26. c5 {[%emt 0:00:00]} Kf8 {[%emt 0:00:13]} 27. c3 {[%emt 0:00:00]} Nc6 {[%emt 0:00:10]} 28. Bd6+ {[%emt 0:00:00]} Ke8 {[%emt 0:00:01]} 29. Kf1 {[%emt 0:00:00]} Kd7 {[%emt 0:00:02]} 30. Ke2 {[%emt 0:00:00]} Nd8 {[%emt 0:00:05]} 31. Bf8 {[%emt 0:00:00]} f5 {[%emt 0:00:44]} 32. Bxg7 {[%emt 0:00:00]} Nf7 {[%emt 0:00:00]} 33. f4 {[%emt 0:00:00]} Kc6 {[%emt 0:00:10]} 34. Bd4 {[%emt 0:00:00]} Kd5 {[%emt 0:00:13]} 35. Kf3 {[%emt 0:00:00]} h5 {[%emt 0:00:13]} 36. Kg2 {[%emt 0:00:04]} Nh6 {[%emt 0:00:12]} 37. Kh3 {[%emt 0:00:10]} Ng4 {[%emt 0:00:02]} 38. Bg1 {[%emt 0:00:01]} e5 {[%emt 0:00:07]} 39. fxe5 {[%emt 0:00:04]} Nxe5 {[%emt 0:00:01]} 40. Be3 {[%emt 0:00:52]} Ng6 {[%emt 0:00:24]} 41. Kg2 {[%emt 0:00:18]} h4 {[%emt 0:00:10]} 42. gxh4 {[%emt 0:00:02]} Nxh4+ {[%emt 0:00:01]} 43. Kg3 {[%emt 0:00:07]} Ng6 {[%emt 0:00:01]} 44. h4 {[%emt 0:00:13]} Ke4 {[%emt 0:00:24]} 45. Bg1 {[%emt 0:00:04]} Ne5 {[%emt 0:00:14]} 46. h5 {[%emt 0:00:02]} f4+ {[%emt 0:00:00]} 47. Kh3 {[%emt 0:00:03]} Kf5 {[%emt 0:00:31]} 48. Bd4 {[%emt 0:00:02]} Nc6 {[%emt 0:00:01]} 49. Bg7 {[%emt 0:00:01]} f3 {[%emt 0:00:42]} 50. h6 {[%emt 0:00:08]} Nd8 {[%emt 0:00:33]} 51. h7 {[%emt 0:00:06]} Nf7 {[%emt 0:00:09]} 52. h8=Q {[%emt 0:00:03]} Nxh8 53. Bxh8 {[%emt 0:00:01]} Ke4 {[%emt 0:00:01]} 54. c6 {[%emt 0:00:05]} 1-0